fUSD/lending_fUSD_20251122
["ID","MTS","AMOUNT","RATE_DAILY","PERIOD"]
[394632751,1763796660976,-150.0,0.00016942,2]
[394632752,1763796660987,-150.0,0.00016942,2]
[394632753,1763796660996,-500.0,0.00016985,2]
[394632754,1763796661006,-485.41944203,0.00016985,2]
[394632755,1763796661019,-500.0,0.00016986,2]
[394632756,1763796661028,-500.0,0.00016986,2]
[394632757,1763796661038,-500.0,0.00016986,2]
[394632758,1763796661047,-500.0,0.00016986,2]
[394632759,1763796661056,-500.0,0.00016986,2]
[394632760,1763796661065,-500.0,0.00016986,2]
[394632761,1763796661075,-500.0,0.00016986,2]
[394632762,1763796661085,-500.0,0.00016986,2]
[394632763,1763796661095,-504.10554933,0.00016986,2]
[394632764,1763796661105,-500.0,0.00016986,2]
[394632765,1763796661202,-500.0,0.00016986,2]
[394632766,1763796661211,-500.0,0.00016986,2]
[394632767,1763796661220,-500.0,0.00016986,2]
[394632768,1763796661229,-500.0,0.00016986,2]
[394632769,1763796661238,-273.51372905,0.00016986,2]
[394632770,1763796661247,-810.42,0.00016986,2]
[394632771,1763796661256,-432.49618822,0.00016986,2]
[394632772,1763796661265,-500.0,0.00016986,2]
[394632773,1763796661274,-500.0,0.00016986,2]
[394632774,1763796661283,-500.0,0.00016986,2]
[394632775,1763796661292,-500.0,0.00016986,2]
[394632776,1763796661302,-964.44,0.00016986,2]
[394632777,1763796661311,-500.0,0.00016986,2]
[394632778,1763796661322,-500.0,0.00016986,2]
[394632779,1763796661331,-500.0,0.00016986,2]
[394632780,1763796661341,-500.0,0.00016986,2]
[394632781,1763796661350,-500.0,0.00016986,2]
[394632782,1763796661360,-500.0,0.00016986,2]
[394632783,1763796661370,-500.0,0.00016986,2]
[394632784,1763796661380,-500.0,0.00016986,2]
[394632785,1763796661391,-629.53,0.00016986,2]
[394632786,1763796661401,-500.0,0.00016986,2]
[394632787,1763796661410,-500.0,0.00016986,2]
[394632788,1763796661419,-638.14,0.00016986,2]
[394632789,1763796661428,-500.0,0.00016986,2]
[394632790,1763796661437,-500.0,0.00016986,2]
[394632791,1763796661447,-500.0,0.00016986,2]
[394632792,1763796661456,-500.0,0.00016986,2]
[394632793,1763796661466,-500.0,0.00016986,2]
[394632794,1763796661480,-500.0,0.00016986,2]
[394632795,1763796661491,-794.89,0.00016986,2]
[394632796,1763796661502,-1110.91,0.00016986,2]
[394632797,1763796661512,-500.0,0.00016986,2]
[394632798,1763796661523,-500.0,0.00016986,2]
[394632799,1763796661532,-678.33,0.00016986,2]
[394632800,1763796661542,-419.57450361,0.00016986,2]
[394632801,1763796661551,-500.0,0.00016986,2]
[394632802,1763796661562,-500.0,0.00016986,2]
[394632803,1763796661572,-500.0,0.00016986,2]
[394632804,1763796661591,-500.0,0.00016986,2]
[394632805,1763796661602,-852.96,0.00016986,2]
[394632806,1763796661611,-500.0,0.00016986,2]
[394632807,1763796661621,-1413.37,0.00016986,2]
[394632808,1763796661630,-1196.14,0.00016986,2]
[394632809,1763796661640,-725.27,0.00016986,2]
[394632810,1763796661650,-500.0,0.00016986,2]
[394632811,1763796661660,-500.0,0.00016986,2]
[394632812,1763796661669,-500.0,0.00016986,2]
[394632813,1763796661679,-182.25506683,0.00016986,2]
[394632814,1763796661688,-500.0,0.00016986,2]
[394632815,1763796661697,-500.0,0.00016986,2]
[394632816,1763796661707,-689.89,0.00016986,2]
[394632817,1763796661716,-500.0,0.00016986,2]
[394632818,1763796661726,-500.0,0.00016986,2]
[394632819,1763796661735,-500.0,0.00016986,2]
[394632820,1763796661744,-500.0,0.00016986,2]
[394632821,1763796661753,-896.26,0.00016986,2]
[394632822,1763796661762,-500.0,0.00016986,2]
[394632823,1763796661772,-500.0,0.00016986,2]
[394632824,1763796661782,-500.0,0.00016986,2]
[394632825,1763796661791,-500.0,0.00016986,2]
[394632826,1763796661801,-500.0,0.00016986,2]
[394632827,1763796661810,-500.0,0.00016986,2]
[394632828,1763796661819,-500.0,0.00016986,2]
[394632829,1763796661828,-985.45,0.00016986,2]
[394632830,1763796661837,-644.04,0.00016986,2]
[394632831,1763796661846,-500.0,0.00016986,2]
[394632832,1763796661855,-522.45,0.00016986,2]
[394632833,1763796661864,-653.95,0.00016986,2]
[394632834,1763796661874,-625.88174935,0.00016986,2]
[394632835,1763796661883,-931.27,0.00016986,2]
[394632836,1763796661894,-500.0,0.00016986,2]
[394632837,1763796661906,-785.57,0.00016986,2]
[394632838,1763796661916,-568.81189061,0.00016986,2]
[394632839,1763796661927,-509.52011712,0.00016986,2]
[394632840,1763796661936,-549.74,0.00016986,2]
[394632841,1763796661950,-500.0,0.00016986,2]
[394632842,1763796661960,-583.58761396,0.00016986,2]
[394632843,1763796661970,-526.38,0.00016986,2]
[394632844,1763796661979,-864.39,0.00016986,2]
[394632845,1763796661990,-718.05,0.00016986,2]
[394632846,1763796661999,-500.0,0.00016986,2]
[394632847,1763796662008,-500.0,0.00016986,2]
[394632848,1763796662018,-500.0,0.00016986,2]
[394632849,1763796662027,-828.05,0.00016986,2]
[394632850,1763796662036,-500.0,0.00016986,2]
[394632851,1763796662046,-500.0,0.00016986,2]
[394632852,1763796662055,-500.0,0.00016986,2]
[394632853,1763796662065,-637.36,0.00016986,2]
[394632854,1763796662076,-500.0,0.00016986,2]
[394632855,1763796662085,-1536.52,0.00016986,2]
[394632856,1763796662095,-528.56,0.00016986,2]
[394632857,1763796662104,-726.93,0.00016986,2]
[394632858,1763796662114,-623.05,0.00016986,2]
[394632859,1763796662123,-500.0,0.00016986,2]
[394632860,1763796662133,-512.82198827,0.00016986,2]
[394632861,1763796662142,-500.0,0.00016986,2]
[394632862,1763796662153,-895.25,0.00016986,2]
[394632863,1763796662163,-766.35,0.00016986,2]
[394632864,1763796662174,-622.45,0.00016986,2]
[394632865,1763796662185,-723.23,0.00016986,2]
[394632866,1763796662196,-1084.02,0.00016986,2]
[394632867,1763796662207,-812.04,0.00016986,2]
[394632868,1763796662217,-500.0,0.00016986,2]
[394632869,1763796662228,-500.0,0.00016986,2]
[394632870,1763796662239,-617.03,0.00016986,2]
[394632871,1763796662248,-935.74,0.00016986,2]
[394632872,1763796662257,-500.0,0.00016986,2]
[394632873,1763796662267,-500.0,0.00016986,2]
[394632874,1763796662276,-638.76,0.00016986,2]
[394632875,1763796662286,-796.12,0.00016986,2]
[394632876,1763796662295,-500.0,0.00016986,2]
[394632877,1763796662308,-500.0,0.00016986,2]
[394632878,1763796662317,-609.19,0.00016986,2]
[394632879,1763796662327,-500.0,0.00016986,2]
[394632880,1763796662336,-1236.5,0.00016986,2]
[394632881,1763796662346,-1841.35,0.00016986,2]
[394632882,1763796662355,-500.0,0.00016986,2]
[394632883,1763796662364,-500.0,0.00016986,2]
[394632884,1763796662373,-596.39,0.00016986,2]
[394632885,1763796662383,-500.0,0.00016986,2]
[394632886,1763796662392,-500.0,0.00016986,2]
[394632887,1763796662402,-500.0,0.00016986,2]
[394632888,1763796662411,-500.0,0.00016986,2]
[394632889,1763796662421,-683.36,0.00016986,2]
[394632890,1763796662430,-521.07,0.00016986,2]
[394632891,1763796662440,-751.71,0.00016986,2]
[394632892,1763796662450,-500.0,0.00016986,2]
[394632893,1763796662459,-500.0,0.00016986,2]
[394632894,1763796662469,-500.0,0.00016986,2]
[394632895,1763796662482,-500.0,0.00016986,2]
[394632896,1763796662492,-500.0,0.00016986,2]
[394632897,1763796662501,-533.0557995,0.00016986,2]
[394632898,1763796662515,-500.0,0.00016986,2]
[394632899,1763796662525,-500.0,0.00016986,2]
[394632900,1763796662535,-524.31360052,0.00016986,2]
[394632901,1763796662544,-524.07199104,0.00016986,2]
[394632902,1763796662555,-500.0,0.00016986,2]
[394632903,1763796662564,-571.19,0.00016986,2]
[394632904,1763796662574,-500.0,0.00016986,2]
[394632905,1763796662583,-500.0,0.00016986,2]
[394632906,1763796662593,-248.62767836,0.00016986,2]
[394632907,1763796662602,-536.79284084,0.00016986,2]
[394632908,1763796662612,-1104.33,0.00016986,2]
[394632909,1763796662623,-726.99,0.00016986,2]
[394632910,1763796662634,-1166.8,0.00016986,2]
[394632911,1763796662644,-1107.36,0.00016986,2]
[394632912,1763796662653,-658.18,0.00016986,2]
[394632913,1763796662663,-500.0,0.00016986,2]
[394632914,1763796662672,-500.0,0.00016986,2]
[394632915,1763796662682,-500.0,0.00016986,2]
[394632916,1763796662691,-500.0,0.00016986,2]
[394632917,1763796662702,-556.46,0.00016986,2]
[394632918,1763796662715,-500.0,0.00016986,2]
[394632919,1763796662725,-500.0,0.00016986,2]
[394632920,1763796662735,-533.99,0.00016986,2]
[394632921,1763796662744,-774.34,0.00016986,2]
[394632922,1763796662754,-500.0,0.00016986,2]
[394632923,1763796662763,-468.6669182,0.00016986,2]
[394632924,1763796662772,-500.0,0.00016986,2]
[394632925,1763796662782,-537.71,0.00016986,2]
[394632926,1763796662791,-689.57,0.00016986,2]
[394632927,1763796662801,-545.99,0.00016986,2]
[394632928,1763796662810,-500.0,0.00016986,2]
[394632929,1763796662819,-500.0,0.00016986,2]
[394632930,1763796662828,-500.0,0.00016986,2]
[394632931,1763796662837,-849.05,0.00016986,2]
[394632932,1763796662846,-829.46,0.00016986,2]
[394632933,1763796662855,-747.29,0.00016986,2]
[394632934,1763796662865,-500.05,0.00016986,2]
[394632935,1763796662874,-859.94,0.00016986,2]
[394632936,1763796662883,-500.0,0.00016986,2]
[394632937,1763796662893,-500.0,0.00016986,2]
[394632938,1763796662907,-1155.96,0.00016986,2]
[394632939,1763796662919,-500.0,0.00016986,2]
[394632940,1763796662929,-500.0,0.00016986,2]
[394632941,1763796662939,-685.16,0.00016986,2]
[394632942,1763796662949,-500.0,0.00016986,2]
[394632943,1763796662959,-500.0,0.00016986,2]
[394632944,1763796662968,-1915.48,0.00016986,2]
[394632945,1763796662978,-895.49,0.00016986,2]
[394632946,1763796662988,-500.0,0.00016986,2]
[394632947,1763796662997,-500.0,0.00016986,2]
[394632948,1763796663007,-330.12146164,0.00016986,2]
[394632949,1763796663016,-500.0,0.00016986,2]
[394632950,1763796663026,-888.82,0.00016986,2]
[394632951,1763796663035,-500.0,0.00016986,2]
[394632952,1763796663045,-500.0,0.00016986,2]
[394632953,1763796663055,-925.18,0.00016986,2]
[394632954,1763796663064,-1533.59,0.00016986,2]
[394632955,1763796663074,-500.0,0.00016986,2]
[394632956,1763796663083,-500.0,0.00016986,2]
[394632957,1763796663093,-500.0,0.00016986,2]
[394632958,1763796663102,-598.82,0.00016986,2]
[394632959,1763796663114,-778.87,0.00016986,2]
[394632960,1763796663123,-500.0,0.00016986,2]
[394632961,1763796663134,-1164.05,0.00016986,2]
[394632962,1763796663143,-340.54533002,0.00016986,2]
[394632963,1763796663152,-500.0,0.00016986,2]
[394632964,1763796663162,-500.0,0.00016986,2]
[394632965,1763796663171,-500.0,0.00016986,2]
[394632966,1763796663181,-500.0,0.00016986,2]
[394632967,1763796663190,-983.24,0.00016986,2]
[394632968,1763796663199,-910.99,0.00016986,2]
[394632969,1763796663208,-694.87,0.00016986,2]
[394632970,1763796663218,-500.0,0.00016986,2]
[394632971,1763796663227,-567.95865232,0.00016986,2]
[394632972,1763796663236,-500.0,0.00016986,2]
[394632973,1763796663246,-500.0,0.00016986,2]
[394632974,1763796663255,-500.0,0.00016986,2]
[394632975,1763796663264,-536.67,0.00016986,2]
[394632976,1763796663274,-500.0,0.00016986,2]
[394632977,1763796663284,-500.0,0.00016986,2]
[394632978,1763796663293,-500.0,0.00016986,2]
[394632979,1763796663303,-500.0,0.00016986,2]
[394632980,1763796663312,-512.50052497,0.00016986,2]
[394632981,1763796663322,-500.0,0.00016986,2]
[394632982,1763796663332,-882.7,0.00016986,2]
[394632983,1763796663341,-912.5,0.00016986,2]
[394632984,1763796663351,-500.0,0.00016986,2]
[394632985,1763796663361,-936.92,0.00016986,2]
[394632986,1763796663370,-972.88,0.00016986,2]
[394632987,1763796663380,-315.5126688,0.00016986,2]
[394632988,1763796663390,-500.0,0.00016986,2]
[394632989,1763796663399,-608.82,0.00016986,2]
[394632990,1763796663409,-500.0,0.00016986,2]
[394632991,1763796663419,-500.0,0.00016986,2]
[394632992,1763796663428,-611.79447895,0.00016986,2]
[394632993,1763796663437,-500.0,0.00016986,2]
[394632994,1763796663446,-657.92,0.00016986,2]
[394632995,1763796663456,-500.0,0.00016986,2]
[394632996,1763796663466,-791.83,0.00016986,2]
[394632997,1763796663479,-808.76,0.00016986,2]
[394632998,1763796663490,-279.12357041,0.00016986,2]
[394632999,1763796663508,-500.0,0.00016986,2]
[394633000,1763796663519,-886.29,0.00016986,2]
[394633001,1763796663528,-500.0,0.00016986,2]
[394633002,1763796663538,-500.0,0.00016986,2]
[394633003,1763796663547,-640.9,0.00016986,2]
[394633004,1763796663559,-500.0,0.00016986,2]
[394633005,1763796663568,-1011.02,0.00016986,2]
[394633006,1763796663578,-500.0,0.00016986,2]
[394633007,1763796663587,-935.99,0.00016986,2]
[394633008,1763796663601,-500.0,0.00016986,2]
[394633009,1763796663611,-1147.71,0.00016986,2]
[394633010,1763796663620,-500.0,0.00016986,2]
[394633011,1763796663630,-636.32,0.00016986,2]
[394633012,1763796663640,-500.0,0.00016986,2]
[394633013,1763796663650,-500.0,0.00016986,2]
[394633014,1763796663660,-639.95,0.00016986,2]
[394633015,1763796663669,-872.31,0.00016986,2]
[394633016,1763796663679,-500.0,0.00016986,2]
[394633017,1763796663689,-500.0,0.00016986,2]
[394633018,1763796663698,-500.0,0.00016986,2]
[394633019,1763796663708,-500.0,0.00016986,2]
[394633020,1763796663717,-500.0,0.00016986,2]
[394633021,1763796663727,-845.8,0.00016986,2]
[394633022,1763796663738,-692.14,0.00016986,2]
[394633023,1763796663748,-500.0,0.00016986,2]
[394633024,1763796663757,-500.0,0.00016986,2]
[394633025,1763796663767,-656.46,0.00016986,2]
[394633026,1763796663777,-500.0,0.00016986,2]
[394633027,1763796663788,-500.0,0.00016986,2]
[394633028,1763796663799,-500.0,0.00016986,2]
[394633029,1763796663809,-931.63,0.00016986,2]
[394633030,1763796663819,-500.0,0.00016986,2]
[394633031,1763796663829,-542.46,0.00016986,2]
[394633032,1763796663839,-835.61,0.00016986,2]
[394633033,1763796663849,-651.02,0.00016986,2]
[394633034,1763796663859,-500.0,0.00016986,2]
[394633035,1763796663870,-500.0,0.00016986,2]
[394633036,1763796663881,-549.68,0.00016986,2]
[394633037,1763796663892,-500.0,0.00016986,2]
[394633038,1763796663903,-500.0,0.00016986,2]
[394633039,1763796663916,-500.0,0.00016986,2]
[394633040,1763796663927,-500.0,0.00016986,2]
[394633041,1763796663938,-486.32,0.00016986,2]
[394633042,1763796663950,-873.25,0.00016986,2]
[394633043,1763796663960,-589.41,0.00016986,2]
[394633044,1763796663970,-500.0,0.00016986,2]
[394633045,1763796663981,-500.0,0.00016986,2]
[394633046,1763796663992,-594.95,0.00016986,2]
[394633047,1763796664003,-500.0,0.00016986,2]
[394633048,1763796664013,-500.0,0.00016986,2]
[394633049,1763796664025,-500.0,0.00016986,2]
[394633050,1763796664036,-617.94,0.00016986,2]
[394633051,1763796664046,-500.0,0.00016986,2]
[394633052,1763796664057,-1413.57,0.00016986,2]
[394633053,1763796664067,-500.0,0.00016986,2]
[394633054,1763796664077,-1156.53,0.00016986,2]
[394633055,1763796664088,-500.0,0.00016986,2]
[394633056,1763796664098,-1448.58,0.00016986,2]
[394633057,1763796664108,-500.0,0.00016986,2]
[394633058,1763796664118,-604.87,0.00016986,2]
[394633059,1763796664129,-1003.3,0.00016986,2]
[394633060,1763796664140,-500.0,0.00016986,2]
[394633061,1763796664150,-500.0,0.00016986,2]
[394633062,1763796664160,-500.0,0.00016986,2]
[394633063,1763796664171,-1122.11,0.00016986,2]
[394633064,1763796664180,-549.59,0.00016986,2]
[394633065,1763796664191,-500.0,0.00016986,2]
[394633066,1763796664201,-500.0,0.00016986,2]
[394633067,1763796664211,-500.0,0.00016986,2]
[394633068,1763796664220,-500.0,0.00016986,2]
[394633069,1763796664229,-951.48,0.00016986,2]
[394633070,1763796664240,-530.49,0.00016986,2]
[394633071,1763796664249,-880.92,0.00016986,2]
[394633072,1763796664258,-580.63386295,0.00016986,2]
[394633073,1763796664268,-500.0,0.00016986,2]
[394633074,1763796664277,-419.65149247,0.00016986,2]
[394633075,1763796664287,-500.0,0.00016986,2]
[394633076,1763796664298,-610.19905511,0.00016986,2]
[394633077,1763796664310,-500.0,0.00016986,2]
[394633078,1763796664320,-1039.53,0.00016986,2]
[394633079,1763796664331,-906.91,0.00016986,2]
[394633080,1763796664341,-500.0,0.00016986,2]
[394633081,1763796664352,-886.33,0.00016986,2]
[394633082,1763796664363,-1164.7,0.00016986,2]
[394633083,1763796664374,-500.0,0.00016986,2]
[394633084,1763796664386,-500.0,0.00016986,2]
[394633085,1763796664396,-599.72,0.00016986,2]
[394633086,1763796664406,-500.0,0.00016986,2]
[394633087,1763796664426,-500.0,0.00016986,2]
[394633088,1763796664446,-763.04,0.00016986,2]
[394633089,1763796664457,-500.0,0.00016986,2]
[394633090,1763796664467,-500.0,0.00016986,2]
[394633091,1763796664481,-500.0,0.00016986,2]
[394633092,1763796664493,-1242.88,0.00016986,2]
[394633093,1763796664503,-500.0,0.00016986,2]
[394633094,1763796664515,-500.0,0.00016986,2]
[394633095,1763796664526,-500.0,0.00016986,2]
[394633096,1763796664536,-500.0,0.00016986,2]
[394633097,1763796664547,-1164.88,0.00016986,2]
[394633098,1763796664558,-500.0,0.00016986,2]
[394633099,1763796664569,-500.0,0.00016986,2]
[394633100,1763796664580,-500.0,0.00016986,2]
[394633101,1763796664590,-500.0,0.00016986,2]
[394633102,1763796664600,-500.0,0.00016986,2]
[394633103,1763796664611,-596.91,0.00016986,2]
[394633104,1763796664621,-500.0,0.00016986,2]
[394633105,1763796664631,-500.0,0.00016986,2]
[394633106,1763796664641,-500.0,0.00016986,2]
[394633107,1763796664652,-500.0,0.00016986,2]
[394633108,1763796664663,-726.97,0.00016986,2]
[394633109,1763796664673,-500.0,0.00016986,2]
[394633110,1763796664684,-500.0,0.00016986,2]
[394633111,1763796664694,-500.0,0.00016986,2]
[394633112,1763796664704,-500.0,0.00016986,2]
[394633113,1763796664714,-500.0,0.00016986,2]
[394633114,1763796664724,-500.0,0.00016986,2]
[394633115,1763796664734,-500.0,0.00016986,2]
[394633116,1763796664744,-586.88176949,0.00016986,2]
[394633117,1763796664755,-500.0,0.00016986,2]
[394633118,1763796664764,-671.23,0.00016986,2]
[394633119,1763796664774,-500.0,0.00016986,2]
[394633120,1763796664784,-627.52,0.00016986,2]
[394633121,1763796664794,-696.9,0.00016986,2]
[394633122,1763796664805,-933.33,0.00016986,2]
[394633123,1763796664814,-500.0,0.00016986,2]
[394633124,1763796664824,-601.14,0.00016986,2]
[394633125,1763796664834,-500.0,0.00016986,2]
[394633126,1763796664844,-500.0,0.00016986,2]
[394633127,1763796664855,-749.56,0.00016986,2]
[394633128,1763796664865,-999.3,0.00016986,2]
[394633129,1763796664875,-500.0,0.00016986,2]
[394633130,1763796664885,-825.61,0.00016986,2]
[394633131,1763796664894,-723.71,0.00016986,2]
[394633132,1763796664904,-500.0,0.00016986,2]
[394633133,1763796664914,-500.0,0.00016986,2]
[394633134,1763796664924,-500.0,0.00016986,2]
[394633135,1763796664934,-500.0,0.00016986,2]
[394633136,1763796664944,-192.70031803,0.00016986,2]
[394633137,1763796664954,-500.0,0.00016986,2]
[394633138,1763796664964,-500.0,0.00016986,2]
[394633139,1763796664975,-593.17,0.00016986,2]
[394633140,1763796664985,-602.39110848,0.00016986,2]
[394633141,1763796664995,-753.76,0.00016986,2]
[394633142,1763796665006,-873.94,0.00016986,2]
[394633143,1763796665016,-500.0,0.00016986,2]
[394633144,1763796665026,-910.56,0.00016986,2]
[394633145,1763796665036,-500.0,0.00016986,2]
[394633146,1763796665046,-500.0,0.00016986,2]
[394633147,1763796665056,-500.0,0.00016986,2]
[394633148,1763796665066,-884.2,0.00016986,2]
[394633149,1763796665076,-500.0,0.00016986,2]
[394633150,1763796665088,-500.0,0.00016986,2]
[394633151,1763796665099,-151.16475053,0.00016986,2]
[394633152,1763796665109,-500.0,0.00016986,2]
[394633153,1763796665120,-500.0,0.00016986,2]
[394633154,1763796665130,-500.0,0.00016986,2]
[394633155,1763796665140,-623.06,0.00016986,2]
[394633156,1763796665151,-2009.89,0.00016986,2]
[394633157,1763796665161,-500.0,0.00016986,2]
[394633158,1763796665170,-500.0,0.00016986,2]
[394633159,1763796665180,-500.0,0.00016986,2]
[394633160,1763796665190,-523.26,0.00016986,2]
[394633161,1763796665200,-1303.67,0.00016986,2]
[394633162,1763796665210,-500.0,0.00016986,2]
[394633163,1763796665220,-500.0,0.00016986,2]
[394633164,1763796665230,-500.0,0.00016986,2]
[394633165,1763796665241,-613.92,0.00016986,2]
[394633166,1763796665252,-618.2,0.00016986,2]
[394633167,1763796665262,-500.0,0.00016986,2]
[394633168,1763796665272,-667.71,0.00016986,2]
[394633169,1763796665283,-561.94,0.00016986,2]
[394633170,1763796665295,-500.0,0.00016986,2]
[394633171,1763796665306,-500.0,0.00016986,2]
[394633172,1763796665317,-500.0,0.00016986,2]
[394633173,1763796665327,-500.0,0.00016986,2]
[394633174,1763796665337,-500.0,0.00016986,2]
[394633175,1763796665348,-533.30269319,0.00016986,2]
[394633176,1763796665358,-500.0,0.00016986,2]
[394633177,1763796665369,-500.0,0.00016986,2]
[394633178,1763796665379,-500.0,0.00016986,2]
[394633179,1763796665389,-616.21,0.00016986,2]
[394633180,1763796665399,-500.0,0.00016986,2]
[394633181,1763796665409,-257.31268724,0.00016986,2]
[394633182,1763796665419,-811.98,0.00016986,2]
[394633183,1763796665430,-500.0,0.00016986,2]
[394633184,1763796665440,-500.0,0.00016986,2]
[394633185,1763796665451,-500.0,0.00016986,2]
[394633186,1763796665461,-500.0,0.00016986,2]
[394633187,1763796665471,-500.0,0.00016986,2]
[394633188,1763796665488,-500.0,0.00016986,2]
[394633189,1763796665499,-500.0,0.00016986,2]
[394633190,1763796665509,-500.0,0.00016986,2]
[394633191,1763796665521,-1297.48,0.00016986,2]
[394633192,1763796665532,-500.0,0.00016986,2]
[394633193,1763796665543,-500.0,0.00016986,2]
[394633194,1763796665553,-531.9,0.00016986,2]
[394633195,1763796665565,-280.02514269,0.00016986,2]
[394633196,1763796665576,-500.0,0.00016986,2]
[394633197,1763796665586,-500.0,0.00016986,2]
[394633198,1763796665597,-515.41,0.00016986,2]
[394633199,1763796665607,-1300.68,0.00016986,2]
[394633200,1763796665618,-500.0,0.00016986,2]
[394633201,1763796665628,-500.0,0.00016986,2]
[394633202,1763796665639,-500.0,0.00016986,2]
[394633203,1763796665649,-500.0,0.00016986,2]
[394633204,1763796665659,-500.0,0.00016986,2]
[394633205,1763796665669,-869.21,0.00016986,2]
[394633206,1763796665680,-1274.4,0.00016986,2]
[394633207,1763796665691,-625.74,0.00016986,2]
[394633208,1763796665701,-828.82,0.00016986,2]
[394633209,1763796665712,-780.09,0.00016986,2]
[394633210,1763796665722,-500.0,0.00016986,2]
[394633211,1763796665732,-500.0,0.00016986,2]
[394633212,1763796665745,-512.74,0.00016986,2]
[394633213,1763796665757,-748.54,0.00016986,2]
[394633214,1763796665772,-802.78,0.00016986,2]
[394633215,1763796665783,-965.69,0.00016986,2]
[394633216,1763796665794,-236.17991134,0.00016986,2]
[394633217,1763796665803,-500.0,0.00016986,2]
[394633218,1763796665813,-1075.58,0.00016986,2]
[394633219,1763796665823,-514.70853821,0.00016986,2]
[394633220,1763796665833,-500.0,0.00016986,2]
[394633221,1763796665843,-500.0,0.00016986,2]
[394633222,1763796665853,-823.13,0.00016986,2]
[394633223,1763796665862,-615.75,0.00016986,2]
[394633224,1763796665872,-500.0,0.00016986,2]
[394633225,1763796665882,-735.57,0.00016986,2]
[394633226,1763796665892,-612.84,0.00016986,2]
[394633227,1763796665902,-500.0,0.00016986,2]
[394633228,1763796665912,-500.0,0.00016986,2]
[394633229,1763796665922,-738.98,0.00016986,2]
[394633230,1763796665932,-500.0,0.00016986,2]
[394633231,1763796665942,-500.0,0.00016986,2]
[394633232,1763796665952,-1600.26,0.00016986,2]
[394633233,1763796665962,-500.0,0.00016986,2]
[394633234,1763796665972,-500.0,0.00016986,2]
[394633235,1763796665986,-500.0,0.00016986,2]
[394633236,1763796665997,-500.0,0.00016986,2]
[394633237,1763796666008,-466.39754458,0.00016986,2]
[394633238,1763796666019,-500.0,0.00016986,2]
[394633239,1763796666029,-500.0,0.00016986,2]
[394633240,1763796666040,-500.0,0.00016986,2]
[394633241,1763796666052,-500.0,0.00016986,2]
[394633242,1763796666065,-500.0,0.00016986,2]
[394633243,1763796666077,-1048.59,0.00016986,2]
[394633244,1763796666418,-500.0,0.00016986,2]
[394633245,1763796666428,-500.0,0.00016986,2]
[394633246,1763796666438,-1445.39,0.00016986,2]
[394633247,1763796666448,-500.0,0.00016986,2]
[394633248,1763796666458,-663.09,0.00016986,2]
[394633249,1763796666471,-845.6,0.00016986,2]
[394633250,1763796666485,-821.34,0.00016986,2]